Workbook

Sheet 总表
A1: 序号 | B1: 股票名称 | C1: 年初至今 | D1: 市值 | E1: 公司名称 | G1: 专利申请量 | H1: 发明 | I1: 发明占比 | J1: 新型 | K1: 外观 | L1: 有效专利 | M1: 有效占比 | N1: 地域 | O1: 专利申请趋势 | P1: 代理所趋势 | Q1: 法律状态 | R1: 有效专利
A2: 14 | B2: 光峰科技 | C2: 1.3097 | D2: 182.52亿 | E2: 深圳光峰科技股份有限公司 | F2: 与半导体光电产品相关的软件的技术开发、销售及咨询;经营进出口业务;投影电视、激光电视及组件、教育多媒体设备及教育相关产品、激光影院放映设备及组件、背投拼接大屏幕及组件、投影屏幕、投影设备及配件、激光显示软件及相关产品的技术开发、销售及相关信息咨询;自产产品的工程安装、调试、维护、租赁及技术咨询服务;显示产品、光学部件技术检验、测试;激光显示系统、信息集成系统、人工智能硬件及软件设备的开发、销售、技术服务。半导体光电产品、投影屏幕、投影设备及系统和组件的生产、研发、销售与技术咨询。 | G2: 1336 | H2: 970 | I2: =H2/G2 -> 0.7260479042 | J2: 282 | K2: 84 | L2: 888 | M2: =L2/G2 -> 0.6646706587 | N2: 深圳 | R2: 888
A3: 12 | B3: 中微公司 | C3: 1.4578 | D3: 381.36亿 | E3: 中微半导体设备(上海)股份有限公司 | F3: 研发、组装集成电路设备、泛半导体设备和其他微观加工设备及环保设备,包括配套设备和零配件,销售自产产品。提供技术咨询、技术服务 | G3: 1027 | H3: 929 | I3: =H3/G3 -> 0.9045764362 | J3: 91 | K3: 7 | L3: 902 | M3: =L3/G3 -> 0.8782862707 | N3: 上海 | R3: 902
A4: 9 | B4: 交控科技 | C4: 1.7491 | D4: 71.17亿 | E4: 交控科技股份有限公司 | F4: 经营SMT生产线(轨道交通列车运行控制系统) | G4: 803 | H4: 714 | I4: =H4/G4 -> 0.8891656289 | J4: 61 | K4: 28 | L4: 567 | M4: =L4/G4 -> 0.7061021171 | N4: 北京 | R4: 567
A5: 7 | B5: 福光股份 | C5: 1.9001 | D5: 112.33亿 | E5: 福建福光股份有限公司 | F5: 学镜头、光学元器件、光电仪器、光学电子产品、通信设备、计算机及其他电子设备、环保设备的研究开发、生产、加工、销售;自营和代理各类商品和技术的进出口 | G5: 697 | H5: 496 | I5: =H5/G5 -> 0.7116212339 | J5: 197 | K5: 4 | L5: 473 | M5: =L5/G5 -> 0.6786226686 | N5: 福建 | R5: 473
A6: 6 | B6: 西部超导 | C6: 2.072 | D6: 203.34亿 | E6: 西部超导材料科技股份有限公司 | F6: 低温超导材料、高温超导材料、钛及钛合金材料、高温合金材料、铪材料、机电设备(小轿车除外)及部件的生产、开发、销售和技术咨询;自有房屋租赁;货物及技术的进出口业务 | G6: 305 | H6: 275 | I6: =H6/G6 -> 0.9016393443 | J6: 30 | K6: 0 | L6: 250 | M6: =L6/G6 -> 0.8196721311 | N6: 西安 | R6: 250
A7: 16 | B7: 晶晨股份 | C7: 1.2675 | D7: 358.91亿 | E7: 晶晨半导体(上海)股份有限公司 | F7: 半导体集成电路芯片的研究、设计、开发、制作;销售自产产品;提供相关的技术支持与技术服务。 | G7: 285 | H7: 285 | I7: =H7/G7 -> 1 | J7: 0 | K7: 0 | L7: 228 | M7: =L7/G7 -> 0.8 | N7: 上海 | R7: 228
A8: 18 | B8: 铂力特 | C8: 1.2121 | D8: 58.40亿 | E8: 西安铂力特增材技术股份有限公司 | F8: 增材制造设备、耗材、零件、软件的技术研发、生产及销售;增材制造修复产品、设备及耗材的研发、生产及销售;机械装备的研发、生产及销售;金属材料、非金属材料、陶瓷材料及其衍生品的技术开发、技术咨询、技术服务、加工生产及销售;设备租赁;货物与技术的进出口经营 | G8: 220 | H8: 161 | I8: =H8/G8 -> 0.7318181818 | J8: 50 | K8: 9 | L8: 141 | M8: =L8/G8 -> 0.6409090909 | N8: 西安 | R8: 141
A9: 19 | B9: 华兴源创 | C9: 1.1381 | D9: 208.00亿 | E9: 苏州华兴源创科技股份有限公司 | F9: TFT-LCD液晶测试系统、工业自控软件研发、生产、加工、检测;电子通讯产品,液晶显示及相关平面显示产品,银制品、电子电工材料及相关工具、模具销售和技术服务;通信及计算机网络相关产品研发 | G9: 194 | H9: 129 | I9: =H9/G9 -> 0.6649484536 | J9: 61 | K9: 4 | L9: 117 | M9: =L9/G9 -> 0.6030927835 | N9: 苏州 | R9: 117
A10: 10 | B10: 南微医学 | C10: 1.6143 | D10: 182.84亿 | E10: 南京微创医学科技股份有限公司 | F10: 医疗器械的研发、生产与销售(凭许可证所列事项生产经营);与本企业业务相关的产品及技术的进出口业务 | G10: 176 | H10: 91 | I10: =H10/G10 -> 0.5170454545 | J10: 78 | K10: 7 | L10: 106 | M10: =L10/G10 -> 0.6022727273 | N10: 南京 | R10: 106
A11: 24 | B11: 天准科技 | C11: 0.7875 | D11: 88.24亿 | E11: 苏州天准科技股份有限公司 | F11: 研发、生产、销售:测量和检测设备、测量和检测系统、机器人与自动化装备、自动化立体仓库及仓储物流设备、大型自动化系统、激光技术及装备、光电传感器、计算机软硬件产品、信息技术与网络系统、光学产品、电子产品、机械产品,并提供以上产品的技术服务、技术咨询、租赁、附属产品的出售,自营和代理各类商品及技术的进出口业务 | G11: 170 | H11: 122 | I11: =H11/G11 -> 0.7176470588 | J11: 36 | K11: 12 | L11: 101 | M11: =L11/G11 -> 0.5941176471 | N11: 苏州 | R11: 101
A12: 23 | B12: 杭可科技 | C12: 0.8848 | D12: 207.32亿 | E12: 浙江杭可科技股份有限公司 | F12: 制造、加工:锂电池化成、检测设备和充放电设备,锂电池组的保护板产品,锂电池自动化生产线;服务:锂电池生产技术的技术开发、成果转让,货物及技术进出口 | G12: 168 | H12: 91 | I12: =H12/G12 -> 0.5416666667 | J12: 77 | K12: 0 | L12: 89 | M12: =L12/G12 -> 0.5297619048 | N12: 杭州 | R12: 89
A13: 21 | B13: 嘉元科技 | C13: 1.0294 | D13: 132.41亿 | E13: 广东嘉元科技股份有限公司 | F13: 研究、制造、销售:电解铜箔制品;经营本企业自产产品及技术的出口业务;经营本企业生产所需的原辅材料、仪器 | G13: 143 | H13: 54 | I13: =H13/G13 -> 0.3776223776 | J13: 89 | K13: 0 | L13: 116 | M13: =L13/G13 -> 0.8111888112 | N13: 广东梅州 | R13: 116
A14: 20 | B14: 乐鑫科技 | C14: 1.1358 | D14: 106.96亿 | E14: 乐鑫信息科技(上海)股份有限公司 | F14: 算机硬件的研究、开发,计算机软件的研发、开发、设计、制作,销售自产产品;集成电路、通信产品及其零配件的研发、设计,上述同类产品、灯具的批发、进出口、佣金代理(拍卖除外),并提供相关的技术咨询和技术服务 | G14: 141 | H14: 115 | I14: =H14/G14 -> 0.8156028369 | J14: 25 | K14: 1 | L14: 80 | M14: =L14/G14 -> 0.5673758865 | N14: 上海 | R14: 80
A15: 1 | B15: 沃尔德 | C15: 2.8549 | D15: 82.28亿 | E15: 北京沃尔德金刚石工具股份有限公司 | F15: 生产金刚石刀具;销售金刚石、机械设备、五金交电、电子产品、矿产品、建材、化工产品(不含危险化学品)、工艺品、日用品;货物进出口;技术进出口;代理进出口 | G15: 135 | H15: 55 | I15: =H15/G15 -> 0.4074074074 | J15: 74 | K15: 6 | L15: 105 | M15: =L15/G15 -> 0.7777777778 | N15: 北京 | R15: 105
A16: 22 | B16: 天宜上佳 | C16: 0.9622 | D16: 179.36亿 | E16: 北京天宜上佳高新材料股份有限公司 | F16: 生产摩擦材料制品;生产轨道车辆配件;技术开发、技术咨询、技术服务;组织文化交流活动;销售化工产品(不含危险化学品及一类易制毒化学品)、建筑材料、机械设备、电子产品;货物进出口、技术进出口、代理进出口;维修机械设备(含轨道车辆配件) | G16: 133 | H16: 59 | I16: =H16/G16 -> 0.4436090226 | J16: 71 | K16: 3 | L16: 117 | M16: =L16/G16 -> 0.8796992481 | N16: 北京 | R16: 117
A17: 5 | B17: 心脉医疗 | C17: 2.0835 | D17: 102.60亿 | E17: 上海微创心脉医疗科技股份有限公司 | F17: 主动脉及外周血管介入医疗器械的研发、生产和销售 | G17: 120 | H17: 101 | I17: =H17/G17 -> 0.8416666667 | J17: 17 | K17: 2 | L17: 103 | M17: =L17/G17 -> 0.8583333333 | N17: 上海 | R17: 103
A18: 13 | B18: 睿创微纳 | C18: 1.405 | D18: 214.05亿 | E18: 烟台睿创微纳技术股份有限公司 | F18: 用于传感光通信、光显示的半导体材料、光电子器材、光电模板与应用系统、红外成像芯片与器件,红外热像仪整机与系统研发、生产和销售 | G18: 112 | H18: 99 | I18: =H18/G18 -> 0.8839285714 | J18: 9 | K18: 4 | L18: 83 | M18: =L18/G18 -> 0.7410714286 | N18: 烟台 | R18: 83
A19: 8 | B19: 澜起科技 | C19: 1.8113 | D19: 787.71亿 | E19: 澜起科技股份有限公司 | F19: 集成电路、线宽0.25微米及以下大规模集成电路、软件产品、新型电子元器件(片式元器件、敏感元器件及传感器、频率控制与选择元件、混合集成电路、电力电子器件、光电子器件) | G19: 95 | H19: 92 | I19: =H19/G19 -> 0.9684210526 | J19: 3 | K19: 0 | L19: 83 | M19: =L19/G19 -> 0.8736842105 | N19: 上海 | R19: 83
A20: 27 | B20: 容百科技 | C20: 0.6683 | D20: 196.86亿 | E20: 宁波容百新能源科技股份有限公司 | F20: 锂电池材料、锂电池及配件的研发、制造、加工;动力电池的研发及制造 | G20: 92 | H20: 70 | I20: =H20/G20 -> 0.7608695652 | J20: 22 | K20: 0 | L20: 61 | M20: =L20/G20 -> 0.6630434783 | N20: 宁波 | R20: 61
A21: 15 | B21: 柏楚电子 | C21: 1.2699 | D21: 155.67亿 | E21: 上海柏楚电子科技股份有限公司 | F21: 计算机软件及辅助设备、电子及机电产品专业领域内的技术开发、技术转让、技术咨询、技术服务,计算机软硬件、通讯设备、仪器仪表、机电产品的销售。 | G21: 73 | H21: 65 | I21: =H21/G21 -> 0.8904109589 | J21: 5 | K21: 3 | L21: 42 | M21: =L21/G21 -> 0.5753424658 | N21: 上海 | R21: 42
A22: 25 | B22: 方邦股份 | C22: 0.7686 | D22: 76.23亿 | E22: 广州方邦电子股份有限公司 | F22: 计算机零部件制造;电子元件及组件制造;印制电路板制造;电子工业专用设备制造;电镀设备及装置制造;电线、电缆制造;试验机制造;电磁屏蔽器材的研究、开发、设计;新材料技术推广服务;电磁屏蔽器材的的销售; | G22: 65 | H22: 21 | I22: =H22/G22 -> 0.3230769231 | J22: 44 | K22: 0 | L22: 58 | M22: =L22/G22 -> 0.8923076923 | N22: 广州 | R22: 58
A23: 3 | B23: 微芯生物 | C23: 2.6163 | D23: 302.91亿 | E23: 深圳微芯生物科技股份有限公司 | F23: 为患者提供可承受的、临床亟需的原创新分子实体药物。 | G23: 48 | H23: 48 | I23: =H23/G23 -> 1 | J23: 0 | K23: 0 | L23: 36 | M23: =L23/G23 -> 0.75 | N23: 深圳 | R23: 36
A24: 11 | B24: 瀚川智能 | C24: 1.4816 | D24: 69.12亿 | E24: 苏州瀚川智能科技股份有限公司 | F24: 设计、研发、组装生产:智能自动化设备;设计、研发、销售:自动化设备零组件、元器件、模块、仪器、软件、硬件 | G24: 44 | H24: 31 | I24: =H24/G24 -> 0.7045454545 | J24: 10 | K24: 3 | L24: 36 | M24: =L24/G24 -> 0.8181818182 | N24: 南京 | P24: 无代理所 | R24: 36
A25: 2 | B25: 安集科技 | C25: 2.6231 | D25: 75.41亿 | E25: 安集微电子科技(上海)股份有限公司 | F25: 关键半导体材料的研发和产业化 | G25: 41 | H25: 41 | I25: =H25/G25 -> 1 | J25: 0 | K25: 0 | L25: 32 | M25: =L25/G25 -> 0.7804878049 | N25: 上海 | R25: 32
A26: 17 | B26: 虹软科技 | C26: 1.2123 | D26: 259.39亿 | E26: 虹软科技股份有限公司 | F26: 技术开发、技术服务、技术咨询、成果转让:计算机软、硬件,计算机系统集成;进出口业务;生产:计算机软件;销售自产产品 | G26: 33 | H26: 29 | I26: =H26/G26 -> 0.8787878788 | J26: 3 | K26: 1 | L26: 20 | M26: =L26/G26 -> 0.6060606061 | N26: 杭州 | R26: 20
A27: 4 | B27: 航天宏图 | C27: 2.3687 | D27: 96.45亿 | E27: 北京航天宏图信息技术股份有限公司 | F27: 技术开发、技术转让、技术咨询、技术服务;计算机技术培训;基础软件服务;应用软件服务;计算机系统服务;数据处理;计算机维修;测绘服务;建设工程项目管理;销售计算机、软件及辅助设备、电子产品、机械设备、通讯设备、五金、交电、化工产品(不含危险化学品及一类易制毒化学品)、文化用品、体育用品、日用品;环境监测;技术检测;技术进出口;代理进出口、货物进出口;工程勘察;工程设计。 | G27: 28 | H27: 28 | I27: =H27/G27 -> 1 | J27: 0 | K27: 0 | L27: 16 | M27: =L27/G27 -> 0.5714285714 | N27: 北京 | R27: 16
A28: 26 | B28: 新光光电 | C28: 0.7427 | D28: 66.38亿 | E28: 哈尔滨新光光电科技股份有限公司 | F28: 从事光机电一体化产品、工业自动化控制系统装置、光学仪器、光学材料、光学镜头、光学监控设备、投影设备的技术开发 | G28: 11 | H28: 11 | I28: =H28/G28 -> 1 | J28: 0 | K28: 0 | L28: 7 | M28: =L28/G28 -> 0.6363636364 | N28: 哈尔滨 | R28: 7
A29: 28 | B29: 中国通号 | C29: 0.6342 | E29: 中国铁路通信信号股份有限公司 | F29: 对外派遣实施与其实力、规模、业绩相适应的国外工程所需的劳务人员;普通货运(限天津工程分公司用,有效期至2018-03-23);承包与其实力、规模、业绩相适应的国外工程项目;铁路含地铁通信、信号、电力、自动控制设备的生产;上述项目工程的科研、勘察、设计、安装、施工、配套工程施工;进出口业务;承包境外铁路、电务工程及境内国际招标工程;承包上述境外工程的勘测、咨询、设计和监理项目;公路交通、机场、港口、工矿的通信、信号、电力、自动控制工程的勘察、设计、安装、施工及配套房屋建筑;与上述项目有关的技术咨询、技术服务;设备及自有房屋的出租。 | G29: 10 | H29: 9 | I29: =H29/G29 -> 0.9 | J29: 1 | K29: 0 | L29: 7 | M29: =L29/G29 -> 0.7 | N29: 北京 | R29: 7

Sheet 研发角度 (hidden)
A1: 序号 | B1: 分类 | C1: 股票名称 | D1: 年初至今 | E1: 市值 | F1: 公司名称 | H1: 专利申请量 | I1: 发明 | J1: 发明占比 | K1: 新型 | L1: 外观 | M1: 有效专利 | N1: 有效占比 | O1: 地域 | P1: 专利申请趋势 | Q1: 代理所趋势 | R1: 法律状态 | S1: 有效专利
A2: 14 | B2: 持续投入 | C2: 光峰科技 | D2: 1.3097 | E2: 182.52亿 | F2: 深圳光峰科技股份有限公司 | G2: 与半导体光电产品相关的软件的技术开发、销售及咨询;经营进出口业务;投影电视、激光电视及组件、教育多媒体设备及教育相关产品、激光影院放映设备及组件、背投拼接大屏幕及组件、投影屏幕、投影设备及配件、激光显示软件及相关产品的技术开发、销售及相关信息咨询;自产产品的工程安装、调试、维护、租赁及技术咨询服务;显示产品、光学部件技术检验、测试;激光显示系统、信息集成系统、人工智能硬件及软件设备的开发、销售、技术服务。半导体光电产品、投影屏幕、投影设备及系统和组件的生产、研发、销售与技术咨询。 | H2: 1336 | I2: 970 | J2: =I2/H2 -> 0.7260479042 | K2: 282 | L2: 84 | M2: 888 | N2: =M2/H2 -> 0.6646706587 | O2: 深圳 | S2: 888
A3: 9 | C3: 交控科技 | D3: 1.7491 | E3: 71.17亿 | F3: 交控科技股份有限公司 | G3: 经营SMT生产线(轨道交通列车运行控制系统) | H3: 803 | I3: 714 | J3: =I3/H3 -> 0.8891656289 | K3: 61 | L3: 28 | M3: 567 | N3: =M3/H3 -> 0.7061021171 | O3: 北京 | S3: 902
A4: 6 | C4: 西部超导 | D4: 2.072 | E4: 203.34亿 | F4: 西部超导材料科技股份有限公司 | G4: 低温超导材料、高温超导材料、钛及钛合金材料、高温合金材料、铪材料、机电设备(小轿车除外)及部件的生产、开发、销售和技术咨询;自有房屋租赁;货物及技术的进出口业务 | H4: 305 | I4: 275 | J4: =I4/H4 -> 0.9016393443 | K4: 30 | L4: 0 | M4: 250 | N4: =M4/H4 -> 0.8196721311 | O4: 西安 | S4: 567
A5: 19 | C5: 华兴源创 | D5: 1.1381 | E5: 208.00亿 | F5: 苏州华兴源创科技股份有限公司 | G5: TFT-LCD液晶测试系统、工业自控软件研发、生产、加工、检测;电子通讯产品,液晶显示及相关平面显示产品,银制品、电子电工材料及相关工具、模具销售和技术服务;通信及计算机网络相关产品研发 | H5: 194 | I5: 129 | J5: =I5/H5 -> 0.6649484536 | K5: 61 | L5: 4 | M5: 117 | N5: =M5/H5 -> 0.6030927835 | O5: 苏州 | S5: 473
A6: 21 | C6: 嘉元科技 | D6: 1.0294 | E6: 132.41亿 | F6: 广东嘉元科技股份有限公司 | G6: 研究、制造、销售:电解铜箔制品;经营本企业自产产品及技术的出口业务;经营本企业生产所需的原辅材料、仪器 | H6: 143 | I6: 54 | J6: =I6/H6 -> 0.3776223776 | K6: 89 | L6: 0 | M6: 116 | N6: =M6/H6 -> 0.8111888112 | O6: 广东梅州 | S6: 250
A7: 13 | C7: 睿创微纳 | D7: 1.405 | E7: 214.05亿 | F7: 烟台睿创微纳技术股份有限公司 | G7: 用于传感光通信、光显示的半导体材料、光电子器材、光电模板与应用系统、红外成像芯片与器件,红外热像仪整机与系统研发、生产和销售 | H7: 112 | I7: 99 | J7: =I7/H7 -> 0.8839285714 | K7: 9 | L7: 4 | M7: 83 | N7: =M7/H7 -> 0.7410714286 | O7: 烟台 | S7: 228
A8: 27 | C8: 容百科技 | D8: 0.6683 | E8: 196.86亿 | F8: 宁波容百新能源科技股份有限公司 | G8: 锂电池材料、锂电池及配件的研发、制造、加工;动力电池的研发及制造 | H8: 92 | I8: 70 | J8: =I8/H8 -> 0.7608695652 | K8: 22 | L8: 0 | M8: 61 | N8: =M8/H8 -> 0.6630434783 | O8: 宁波 | S8: 141
A9: 12 | B9: 投入平缓 | C9: 中微公司 | D9: 1.4578 | E9: 381.36亿 | F9: 中微半导体设备(上海)股份有限公司 | G9: 研发、组装集成电路设备、泛半导体设备和其他微观加工设备及环保设备,包括配套设备和零配件,销售自产产品。提供技术咨询、技术服务 | H9: 1027 | I9: 929 | J9: =I9/H9 -> 0.9045764362 | K9: 91 | L9: 7 | M9: 902 | N9: =M9/H9 -> 0.8782862707 | O9: 上海 | S9: 117
A10: 7 | C10: 福光股份 | D10: 1.9001 | E10: 112.33亿 | F10: 福建福光股份有限公司 | G10: 学镜头、光学元器件、光电仪器、光学电子产品、通信设备、计算机及其他电子设备、环保设备的研究开发、生产、加工、销售;自营和代理各类商品和技术的进出口 | H10: 697 | I10: 496 | J10: =I10/H10 -> 0.7116212339 | K10: 197 | L10: 4 | M10: 473 | N10: =M10/H10 -> 0.6786226686 | O10: 福建 | S10: 106
A11: 18 | C11: 铂力特 | D11: 1.2121 | E11: 58.40亿 | F11: 西安铂力特增材技术股份有限公司 | G11: 增材制造设备、耗材、零件、软件的技术研发、生产及销售;增材制造修复产品、设备及耗材的研发、生产及销售;机械装备的研发、生产及销售;金属材料、非金属材料、陶瓷材料及其衍生品的技术开发、技术咨询、技术服务、加工生产及销售;设备租赁;货物与技术的进出口经营 | H11: 220 | I11: 161 | J11: =I11/H11 -> 0.7318181818 | K11: 50 | L11: 9 | M11: 141 | N11: =M11/H11 -> 0.6409090909 | O11: 西安 | S11: 101
A12: 10 | C12: 南微医学 | D12: 1.6143 | E12: 182.84亿 | F12: 南京微创医学科技股份有限公司 | G12: 医疗器械的研发、生产与销售(凭许可证所列事项生产经营);与本企业业务相关的产品及技术的进出口业务 | H12: 176 | I12: 91 | J12: =I12/H12 -> 0.5170454545 | K12: 78 | L12: 7 | M12: 106 | N12: =M12/H12 -> 0.6022727273 | O12: 南京 | S12: 89
A13: 24 | C13: 天准科技 | D13: 0.7875 | E13: 88.24亿 | F13: 苏州天准科技股份有限公司 | G13: 研发、生产、销售:测量和检测设备、测量和检测系统、机器人与自动化装备、自动化立体仓库及仓储物流设备、大型自动化系统、激光技术及装备、光电传感器、计算机软硬件产品、信息技术与网络系统、光学产品、电子产品、机械产品,并提供以上产品的技术服务、技术咨询、租赁、附属产品的出售,自营和代理各类商品及技术的进出口业务 | H13: 170 | I13: 122 | J13: =I13/H13 -> 0.7176470588 | K13: 36 | L13: 12 | M13: 101 | N13: =M13/H13 -> 0.5941176471 | O13: 苏州 | S13: 116
A14: 23 | C14: 杭可科技 | D14: 0.8848 | E14: 207.32亿 | F14: 浙江杭可科技股份有限公司 | G14: 制造、加工:锂电池化成、检测设备和充放电设备,锂电池组的保护板产品,锂电池自动化生产线;服务:锂电池生产技术的技术开发、成果转让,货物及技术进出口 | H14: 168 | I14: 91 | J14: =I14/H14 -> 0.5416666667 | K14: 77 | L14: 0 | M14: 89 | N14: =M14/H14 -> 0.5297619048 | O14: 杭州 | S14: 80
A15: 20 | C15: 乐鑫科技 | D15: 1.1358 | E15: 106.96亿 | F15: 乐鑫信息科技(上海)股份有限公司 | G15: 算机硬件的研究、开发,计算机软件的研发、开发、设计、制作,销售自产产品;集成电路、通信产品及其零配件的研发、设计,上述同类产品、灯具的批发、进出口、佣金代理(拍卖除外),并提供相关的技术咨询和技术服务 | H15: 141 | I15: 115 | J15: =I15/H15 -> 0.8156028369 | K15: 25 | L15: 1 | M15: 80 | N15: =M15/H15 -> 0.5673758865 | O15: 上海 | S15: 105
A16: 1 | C16: 沃尔德 | D16: 2.8549 | E16: 82.28亿 | F16: 北京沃尔德金刚石工具股份有限公司 | G16: 生产金刚石刀具;销售金刚石、机械设备、五金交电、电子产品、矿产品、建材、化工产品(不含危险化学品)、工艺品、日用品;货物进出口;技术进出口;代理进出口 | H16: 135 | I16: 55 | J16: =I16/H16 -> 0.4074074074 | K16: 74 | L16: 6 | M16: 105 | N16: =M16/H16 -> 0.7777777778 | O16: 北京 | S16: 117
A17: 22 | C17: 天宜上佳 | D17: 0.9622 | E17: 179.36亿 | F17: 北京天宜上佳高新材料股份有限公司 | G17: 生产摩擦材料制品;生产轨道车辆配件;技术开发、技术咨询、技术服务;组织文化交流活动;销售化工产品(不含危险化学品及一类易制毒化学品)、建筑材料、机械设备、电子产品;货物进出口、技术进出口、代理进出口;维修机械设备(含轨道车辆配件) | H17: 133 | I17: 59 | J17: =I17/H17 -> 0.4436090226 | K17: 71 | L17: 3 | M17: 117 | N17: =M17/H17 -> 0.8796992481 | O17: 北京 | S17: 103
A18: 5 | C18: 心脉医疗 | D18: 2.0835 | E18: 102.60亿 | F18: 上海微创心脉医疗科技股份有限公司 | G18: 主动脉及外周血管介入医疗器械的研发、生产和销售 | H18: 120 | I18: 101 | J18: =I18/H18 -> 0.8416666667 | K18: 17 | L18: 2 | M18: 103 | N18: =M18/H18 -> 0.8583333333 | O18: 上海 | S18: 83
A19: 8 | C19: 澜起科技 | D19: 1.8113 | E19: 787.71亿 | F19: 澜起科技股份有限公司 | G19: 集成电路、线宽0.25微米及以下大规模集成电路、软件产品、新型电子元器件(片式元器件、敏感元器件及传感器、频率控制与选择元件、混合集成电路、电力电子器件、光电子器件) | H19: 95 | I19: 92 | J19: =I19/H19 -> 0.9684210526 | K19: 3 | L19: 0 | M19: 83 | N19: =M19/H19 -> 0.8736842105 | O19: 上海 | S19: 83
A20: 3 | C20: 微芯生物 | D20: 2.6163 | E20: 302.91亿 | F20: 深圳微芯生物科技股份有限公司 | G20: 为患者提供可承受的、临床亟需的原创新分子实体药物。 | H20: 48 | I20: 48 | J20: =I20/H20 -> 1 | K20: 0 | L20: 0 | M20: 36 | N20: =M20/H20 -> 0.75 | O20: 深圳 | S20: 61
A21: 28 | C21: 中国通号 | D21: 0.6342 | F21: 中国铁路通信信号股份有限公司 | G21: 对外派遣实施与其实力、规模、业绩相适应的国外工程所需的劳务人员;普通货运(限天津工程分公司用,有效期至2018-03-23);承包与其实力、规模、业绩相适应的国外工程项目;铁路含地铁通信、信号、电力、自动控制设备的生产;上述项目工程的科研、勘察、设计、安装、施工、配套工程施工;进出口业务;承包境外铁路、电务工程及境内国际招标工程;承包上述境外工程的勘测、咨询、设计和监理项目;公路交通、机场、港口、工矿的通信、信号、电力、自动控制工程的勘察、设计、安装、施工及配套房屋建筑;与上述项目有关的技术咨询、技术服务;设备及自有房屋的出租。 | H21: 10 | I21: 9 | J21: =I21/H21 -> 0.9 | K21: 1 | L21: 0 | M21: 7 | N21: =M21/H21 -> 0.7 | O21: 北京 | S21: 42
A22: 16 | B22: 突击上量 | C22: 晶晨股份 | D22: 1.2675 | E22: 358.91亿 | F22: 晶晨半导体(上海)股份有限公司 | G22: 半导体集成电路芯片的研究、设计、开发、制作;销售自产产品;提供相关的技术支持与技术服务。 | H22: 285 | I22: 285 | J22: =I22/H22 -> 1 | K22: 0 | L22: 0 | M22: 228 | N22: =M22/H22 -> 0.8 | O22: 上海 | S22: 58
A23: 15 | C23: 柏楚电子 | D23: 1.2699 | E23: 155.67亿 | F23: 上海柏楚电子科技股份有限公司 | G23: 计算机软件及辅助设备、电子及机电产品专业领域内的技术开发、技术转让、技术咨询、技术服务,计算机软硬件、通讯设备、仪器仪表、机电产品的销售。 | H23: 73 | I23: 65 | J23: =I23/H23 -> 0.8904109589 | K23: 5 | L23: 3 | M23: 42 | N23: =M23/H23 -> 0.5753424658 | O23: 上海 | S23: 36
A24: 25 | C24: 方邦股份 | D24: 0.7686 | E24: 76.23亿 | F24: 广州方邦电子股份有限公司 | G24: 计算机零部件制造;电子元件及组件制造;印制电路板制造;电子工业专用设备制造;电镀设备及装置制造;电线、电缆制造;试验机制造;电磁屏蔽器材的研究、开发、设计;新材料技术推广服务;电磁屏蔽器材的的销售; | H24: 65 | I24: 21 | J24: =I24/H24 -> 0.3230769231 | K24: 44 | L24: 0 | M24: 58 | N24: =M24/H24 -> 0.8923076923 | O24: 广州 | S24: 36
A25: 11 | C25: 瀚川智能 | D25: 1.4816 | E25: 69.12亿 | F25: 苏州瀚川智能科技股份有限公司 | G25: 设计、研发、组装生产:智能自动化设备;设计、研发、销售:自动化设备零组件、元器件、模块、仪器、软件、硬件 | H25: 44 | I25: 31 | J25: =I25/H25 -> 0.7045454545 | K25: 10 | L25: 3 | M25: 36 | N25: =M25/H25 -> 0.8181818182 | O25: 南京 | Q25: 无代理所 | S25: 32
A26: 2 | C26: 安集科技 | D26: 2.6231 | E26: 75.41亿 | F26: 安集微电子科技(上海)股份有限公司 | G26: 关键半导体材料的研发和产业化 | H26: 41 | I26: 41 | J26: =I26/H26 -> 1 | K26: 0 | L26: 0 | M26: 32 | N26: =M26/H26 -> 0.7804878049 | O26: 上海 | S26: 20
A27: 17 | C27: 虹软科技 | D27: 1.2123 | E27: 259.39亿 | F27: 虹软科技股份有限公司 | G27: 技术开发、技术服务、技术咨询、成果转让:计算机软、硬件,计算机系统集成;进出口业务;生产:计算机软件;销售自产产品 | H27: 33 | I27: 29 | J27: =I27/H27 -> 0.8787878788 | K27: 3 | L27: 1 | M27: 20 | N27: =M27/H27 -> 0.6060606061 | O27: 杭州 | S27: 16
A28: 4 | C28: 航天宏图 | D28: 2.3687 | E28: 96.45亿 | F28: 北京航天宏图信息技术股份有限公司 | G28: 技术开发、技术转让、技术咨询、技术服务;计算机技术培训;基础软件服务;应用软件服务;计算机系统服务;数据处理;计算机维修;测绘服务;建设工程项目管理;销售计算机、软件及辅助设备、电子产品、机械设备、通讯设备、五金、交电、化工产品(不含危险化学品及一类易制毒化学品)、文化用品、体育用品、日用品;环境监测;技术检测;技术进出口;代理进出口、货物进出口;工程勘察;工程设计。 | H28: 28 | I28: 28 | J28: =I28/H28 -> 1 | K28: 0 | L28: 0 | M28: 16 | N28: =M28/H28 -> 0.5714285714 | O28: 北京 | S28: 7
A29: 26 | C29: 新光光电 | D29: 0.7427 | E29: 66.38亿 | F29: 哈尔滨新光光电科技股份有限公司 | G29: 从事光机电一体化产品、工业自动化控制系统装置、光学仪器、光学材料、光学镜头、光学监控设备、投影设备的技术开发 | H29: 11 | I29: 11 | J29: =I29/H29 -> 1 | K29: 0 | L29: 0 | M29: 7 | N29: =M29/H29 -> 0.6363636364 | O29: 哈尔滨 | S29: 7
